[Event "December 19 Early 2023"]
[Site "https://www.chess.com"]
[Date "2023.12.19"]
[Round "4"]
[White "Andreev, Konstantin"]
[Black "Porozhnyak, Maya"]
[Result "0-1"]
[Board "125"]
[TimeControl "180+1"]
[WhiteFideId "24239305"]
[BlackFideId "34115843"]
[WhiteElo "2093"]
[BlackElo "1932"]
[WhiteTeam "ITA"]
[BlackTeam "RUS"]
[WhiteClock "0:00:00"]
[BlackClock "0:00:05"]

1. e4 {[%clk 0:03:00]}  c5 {[%clk 0:03:00]} 2. Nf3 {[%clk 0:03:00]}  e6 {[%clk 0:03:00]} 3. d4 {[%clk 0:03:01]}  cxd4 {[%clk 0:03:01]} 4. Nxd4 {[%clk 0:03:01]}  a6 {[%clk 0:03:02]} 5. Bd3 {[%clk 0:03:02]}  Ne7 {[%clk 0:03:01]} 6. O-O {[%clk 0:03:00]}  Nbc6 {[%clk 0:03:02]} 7. Nxc6 {[%clk 0:02:57]}  dxc6 {[%clk 0:02:59]} 8. f4 {[%clk 0:02:58]}  Ng6 {[%clk 0:02:51]} 9. Be3 {[%clk 0:02:50]}  Be7 {[%clk 0:02:34]} 10. e5 {[%clk 0:02:49]}  c5 {[%clk 0:02:25]} 11. a4 {[%clk 0:02:48]}  Qc7 {[%clk 0:02:08]} 12. Nd2 {[%clk 0:02:46]}  Bd7 {[%clk 0:02:04]} 13. a5 {[%clk 0:02:41]}  Rd8 {[%clk 0:02:00]} 14. Qe2 {[%clk 0:02:41]}  O-O {[%clk 0:01:41]} 15. b3 {[%clk 0:02:37]}  f6 {[%clk 0:01:27]} 16. exf6 {[%clk 0:02:33]}  Bxf6 {[%clk 0:01:25]} 17. Rae1 {[%clk 0:02:22]}  Ne7 {[%clk 0:01:21]} 18. Ne4 {[%clk 0:02:04]}  Nf5 {[%clk 0:01:07]} 19. Bxc5 {[%clk 0:02:03]}  Bd4+ {[%clk 0:00:59]} 20. Bxd4 {[%clk 0:02:01]}  Nxd4 {[%clk 0:01:00]} 21. Qh5 {[%clk 0:01:41]}  g6 {[%clk 0:00:57]} 22. Qh4 {[%clk 0:01:39]}  Kg7 {[%clk 0:00:45]} 23. Ng5 {[%clk 0:01:23]}  h6 {[%clk 0:00:43]} 24. Ne4 {[%clk 0:01:16]}  Qxa5 {[%clk 0:00:28]} 25. Nd6 {[%clk 0:00:58]}  Nf5 {[%clk 0:00:11]} 26. Nxf5+ {[%clk 0:00:54]}  exf5 {[%clk 0:00:11]} 27. Re7+ {[%clk 0:00:50]}  Rf7 {[%clk 0:00:12]} 28. Rxf7+ {[%clk 0:00:50]}  Kxf7 {[%clk 0:00:13]} 29. Bc4+ {[%clk 0:00:50]}  Be6 {[%clk 0:00:09]} 30. Bxe6+ {[%clk 0:00:49]}  Kxe6 {[%clk 0:00:10]} 31. Re1+ {[%clk 0:00:49]}  Kd7 {[%clk 0:00:08]} 32. Re5 {[%clk 0:00:36]}  Qb6+ {[%clk 0:00:07]} 33. Kf1 {[%clk 0:00:31]}  Kc8 {[%clk 0:00:08]} 34. Qe1 {[%clk 0:00:26]}  Kb8 {[%clk 0:00:03]} 35. h3 {[%clk 0:00:23]}  Ka7 {[%clk 0:00:02]} 36. Re6 {[%clk 0:00:20]}  Rd6 {[%clk 0:00:03]} 37. Rxd6 {[%clk 0:00:14]}  Qxd6 {[%clk 0:00:04]} 38. Qe3+ {[%clk 0:00:13]}  b6 {[%clk 0:00:04]} 39. Kf2 {[%clk 0:00:12]}  a5 {[%clk 0:00:04]} 40. Kf3 {[%clk 0:00:11]}  Qc5 {[%clk 0:00:05]} 41. Qd3 {[%clk 0:00:09]}  Qc6+ {[%clk 0:00:04]} 42. Kf2 {[%clk 0:00:08]}  Kb7 {[%clk 0:00:05]} 43. c4 {[%clk 0:00:07]}  b5 {[%clk 0:00:05]} 44. cxb5 {[%clk 0:00:07]}  Qc5+ {[%clk 0:00:06]} 45. Kf3 {[%clk 0:00:08]}  Kb6 {[%clk 0:00:06]} 46. Qd8+ {[%clk 0:00:07]}  Kxb5 {[%clk 0:00:06]} 47. Qg8 {[%clk 0:00:05]}  Qc6+ {[%clk 0:00:05]} 48. Kf2 {[%clk 0:00:06]}  Kb4 {[%clk 0:00:06]} 49. Ke2 {[%clk 0:00:05]}  h5 {[%clk 0:00:06]} 50. g3 {[%clk 0:00:05]}  Qg2+ {[%clk 0:00:06]} 51. Kd1 {[%clk 0:00:05]}  Qxg3 {[%clk 0:00:07]} 52. Kc2 {[%clk 0:00:05]}  Qf2+ {[%clk 0:00:06]} 53. Kd3 {[%clk 0:00:05]}  Qf3+ {[%clk 0:00:07]} 54. Kd2 {[%clk 0:00:05]}  Qxb3 {[%clk 0:00:07]} 55. Qxg6 {[%clk 0:00:05]}  Qc3+ {[%clk 0:00:07]} 56. Ke2 {[%clk 0:00:05]}  Qc4+ {[%clk 0:00:07]} 57. Ke3 {[%clk 0:00:06]}  Qe4+ {[%clk 0:00:07]} 58. Kd2 {[%clk 0:00:06]}  Qxf4+ {[%clk 0:00:08]} 59. Kd3 {[%clk 0:00:06]}  Qe4+ {[%clk 0:00:08]} 60. Kd2 {[%clk 0:00:07]}  a4 {[%clk 0:00:06]} 61. Qb6+ {[%clk 0:00:06]}  Kc4 {[%clk 0:00:05]} 62. Qa6+ {[%clk 0:00:06]}  Kd5 {[%clk 0:00:06]} 63. Qb6 {[%clk 0:00:06]}  Ke5 {[%clk 0:00:06]} 64. Qc7+ {[%clk 0:00:05]}  Kf6 {[%clk 0:00:07]} 65. Qd8+ {[%clk 0:00:05]}  Qe7 {[%clk 0:00:06]} 66. Qd4+ {[%clk 0:00:06]}  Qe5 {[%clk 0:00:06]} 67. Qxa4 {[%clk 0:00:07]}  Qd5+ {[%clk 0:00:05]} 68. Ke1 {[%clk 0:00:06]}  Qh1+ {[%clk 0:00:06]} 69. Kf2 {[%clk 0:00:07]}  Qh2+ {[%clk 0:00:06]} 70. Ke1 {[%clk 0:00:06]}  Qxh3 {[%clk 0:00:06]} 71. Qc6+ {[%clk 0:00:05]}  Kg5 {[%clk 0:00:07]} 72. Kf2 {[%clk 0:00:06]}  Qh4+ {[%clk 0:00:06]} 73. Kf1 {[%clk 0:00:05]}  Qf4+ {[%clk 0:00:06]} 74. Kg1 {[%clk 0:00:04]}  Qe3+ {[%clk 0:00:06]} 75. Kf1 {[%clk 0:00:04]}  Qe4 {[%clk 0:00:06]} 76. Qc7 {[%clk 0:00:00]}  Qf4+ {[%clk 0:00:05]} 0-1

[Event "December 19 Early 2023"]
[Site "https://www.chess.com"]
[Date "2023.12.19"]
[Round "4"]
[White "Garrido, Denis"]
[Black "Nanu, Costica-Ciprian"]
[Result "0-1"]
[Board "127"]
[TimeControl "180+1"]
[WhiteFideId "601217"]
[BlackFideId "1204580"]
[WhiteElo "2410"]
[BlackElo "2485"]
[WhiteTeam "FRA"]
[BlackTeam "ROU"]
[WhiteClock "0:00:09"]
[BlackClock "0:00:58"]

1. e4 {[%clk 0:03:00]}  c5 {[%clk 0:02:56]} 2. Nf3 {[%clk 0:03:00]}  Nc6 {[%clk 0:02:41]} 3. Bb5 {[%clk 0:03:00]}  Qb6 {[%clk 0:02:40]} 4. Nc3 {[%clk 0:02:59]}  e6 {[%clk 0:02:36]} 5. Bxc6 {[%clk 0:02:58]}  Qxc6 {[%clk 0:02:36]} 6. d4 {[%clk 0:02:58]}  cxd4 {[%clk 0:02:37]} 7. Nxd4 {[%clk 0:02:58]}  Qc7 {[%clk 0:02:37]} 8. O-O {[%clk 0:02:57]}  a6 {[%clk 0:02:38]} 9. Re1 {[%clk 0:02:57]}  d6 {[%clk 0:02:37]} 10. Bg5 {[%clk 0:02:56]}  Be7 {[%clk 0:02:36]} 11. Bxe7 {[%clk 0:02:55]}  Nxe7 {[%clk 0:02:37]} 12. Qh5 {[%clk 0:02:41]}  Ng6 {[%clk 0:02:36]} 13. Rad1 {[%clk 0:02:39]}  Bd7 {[%clk 0:02:35]} 14. a4 {[%clk 0:02:23]}  Rc8 {[%clk 0:02:30]} 15. g3 {[%clk 0:02:21]}  Qc5 {[%clk 0:02:29]} 16. Qe2 {[%clk 0:02:15]}  O-O {[%clk 0:02:28]} 17. h4 {[%clk 0:02:12]}  Rfd8 {[%clk 0:02:26]} 18. h5 {[%clk 0:02:12]}  Ne5 {[%clk 0:02:25]} 19. Nb3 {[%clk 0:02:07]}  Qc7 {[%clk 0:02:25]} 20. h6 {[%clk 0:02:03]}  g6 {[%clk 0:02:24]} 21. Qe3 {[%clk 0:01:49]}  Be8 {[%clk 0:02:12]} 22. Qf4 {[%clk 0:01:47]}  Qe7 {[%clk 0:02:11]} 23. Nd4 {[%clk 0:01:31]}  Nc4 {[%clk 0:02:01]} 24. Qc1 {[%clk 0:01:28]}  Qf6 {[%clk 0:01:51]} 25. Nb1 {[%clk 0:01:08]}  Rc5 {[%clk 0:01:50]} 26. b3 {[%clk 0:01:05]}  Nb6 {[%clk 0:01:48]} 27. Re2 {[%clk 0:00:34]}  Rh5 {[%clk 0:01:45]} 28. Kg2 {[%clk 0:00:32]}  Nd7 {[%clk 0:01:40]} 29. f4 {[%clk 0:00:29]}  Rxh6 {[%clk 0:01:33]} 30. Nf3 {[%clk 0:00:29]}  Nc5 {[%clk 0:01:29]} 31. Ng5 {[%clk 0:00:29]}  Bc6 {[%clk 0:01:25]} 32. Nd2 {[%clk 0:00:27]}  Rh5 {[%clk 0:01:23]} 33. Ree1 {[%clk 0:00:27]}  Rxg5 {[%clk 0:01:21]} 34. fxg5 {[%clk 0:00:27]}  Qxg5 {[%clk 0:01:21]} 35. Kh2 {[%clk 0:00:19]}  Qh5+ {[%clk 0:01:18]} 36. Kg1 {[%clk 0:00:19]}  Qg4 {[%clk 0:01:17]} 37. Re3 {[%clk 0:00:18]}  Nxe4 {[%clk 0:01:16]} 38. Nxe4 {[%clk 0:00:17]}  Bxe4 {[%clk 0:01:17]} 39. Rd4 {[%clk 0:00:15]}  f5 {[%clk 0:01:14]} 40. Qd2 {[%clk 0:00:14]}  Qg5 {[%clk 0:01:09]} 41. Kf2 {[%clk 0:00:12]}  Qe7 {[%clk 0:01:02]} 42. c4 {[%clk 0:00:10]}  e5 {[%clk 0:00:59]} 43. Rdxe4 {[%clk 0:00:08]}  fxe4 {[%clk 0:01:00]} 44. Rxe4 {[%clk 0:00:09]}  Rf8+ {[%clk 0:00:59]} 45. Kg2 {[%clk 0:00:10]}  Qf6 {[%clk 0:00:59]} 46. Qd5+ {[%clk 0:00:10]}  Kg7 {[%clk 0:00:59]} 47. Qxb7+ {[%clk 0:00:09]}  Rf7 {[%clk 0:00:58]} 48. Qd5 {[%clk 0:00:09]}  Qf1+ {[%clk 0:00:58]} 49. Kh2 {[%clk 0:00:09]}  Rf2# {[%clk 0:00:58]} 0-1

[Event "December 19 Early 2023"]
[Site "https://www.chess.com"]
[Date "2023.12.19"]
[Round "4"]
[White "Tay, Junior"]
[Black "Ozates, Tuna"]
[Result "0-1"]
[Board "128"]
[TimeControl "180+1"]
[WhiteFideId "5800439"]
[BlackFideId "6354521"]
[WhiteElo "2216"]
[BlackElo "2151"]
[WhiteTeam "SGP"]
[BlackTeam "TUR"]
[WhiteClock "0:00:11"]
[BlackClock "0:00:07"]

1. e4 {[%clk 0:03:00]}  e5 {[%clk 0:02:54]} 2. Nc3 {[%clk 0:03:00]}  Nf6 {[%clk 0:02:50]} 3. f4 {[%clk 0:02:58]}  d5 {[%clk 0:02:47]} 4. fxe5 {[%clk 0:02:58]}  Nxe4 {[%clk 0:02:47]} 5. d3 {[%clk 0:02:59]}  Nxc3 {[%clk 0:02:28]} 6. bxc3 {[%clk 0:02:58]}  d4 {[%clk 0:02:28]} 7. Nf3 {[%clk 0:02:58]}  Nc6 {[%clk 0:02:26]} 8. Be2 {[%clk 0:02:58]}  Bg4 {[%clk 0:02:21]} 9. O-O {[%clk 0:02:58]}  Qd7 {[%clk 0:02:21]} 10. Rb1 {[%clk 0:02:57]}  Bc5 {[%clk 0:02:18]} 11. Kh1 {[%clk 0:02:57]}  Bxf3 {[%clk 0:02:15]} 12. Bxf3 {[%clk 0:02:56]}  Bb6 {[%clk 0:02:15]} 13. c4 {[%clk 0:02:41]}  O-O {[%clk 0:01:47]} 14. Ba3 {[%clk 0:02:24]}  Rfe8 {[%clk 0:01:44]} 15. Bd5 {[%clk 0:02:19]}  Nxe5 {[%clk 0:01:24]} 16. Qh5 {[%clk 0:02:17]}  g6 {[%clk 0:01:15]} 17. Qh6 {[%clk 0:02:15]}  c6 {[%clk 0:01:13]} 18. Be4 {[%clk 0:02:14]}  f5 {[%clk 0:01:09]} 19. Bf3 {[%clk 0:02:08]}  Nxf3 {[%clk 0:01:01]} 20. Rxf3 {[%clk 0:02:07]}  Re2 {[%clk 0:00:49]} 21. Rbf1 {[%clk 0:01:57]}  Rae8 {[%clk 0:00:47]} 22. h4 {[%clk 0:01:54]}  Qg7 {[%clk 0:00:36]} 23. Qc1 {[%clk 0:01:48]}  Bc7 {[%clk 0:00:25]} 24. Bb4 {[%clk 0:01:16]}  Qe5 {[%clk 0:00:15]} 25. g3 {[%clk 0:01:09]}  a5 {[%clk 0:00:15]} 26. Bd2 {[%clk 0:01:04]}  b5 {[%clk 0:00:08]} 27. cxb5 {[%clk 0:01:03]}  cxb5 {[%clk 0:00:09]} 28. Bf4 {[%clk 0:01:01]}  Qe7 {[%clk 0:00:08]} 29. Bxc7 {[%clk 0:00:53]}  Qxc7 {[%clk 0:00:09]} 30. Qg5 {[%clk 0:00:53]}  Qxc2 {[%clk 0:00:08]} 31. Kg1 {[%clk 0:00:11]}  Rg2+ {[%clk 0:00:07]} 0-1

[Event "December 19 Early 2023"]
[Site "https://www.chess.com"]
[Date "2023.12.19"]
[Round "4"]
[White "Korol, Dimitry"]
[Black "aksuliini1"]
[Result "1/2-1/2"]
[Board "130"]
[TimeControl "180+1"]
[WhiteFideId "14108003"]
[WhiteElo "2262"]
[BlackElo "2546"]
[WhiteTeam "UKR"]
[WhiteClock "0:00:09"]
[BlackClock "0:00:09"]

1. d4 {[%clk 0:03:00]}  Nf6 {[%clk 0:02:59]} 2. c4 {[%clk 0:03:01]}  e6 {[%clk 0:03:00]} 3. Nc3 {[%clk 0:03:02]}  Bb4 {[%clk 0:02:59]} 4. Qc2 {[%clk 0:03:02]}  O-O {[%clk 0:02:59]} 5. e4 {[%clk 0:03:02]}  d5 {[%clk 0:02:58]} 6. cxd5 {[%clk 0:03:03]}  exd5 {[%clk 0:02:56]} 7. e5 {[%clk 0:03:04]}  Ne4 {[%clk 0:02:56]} 8. Bd3 {[%clk 0:03:05]}  c5 {[%clk 0:02:51]} 9. Ne2 {[%clk 0:03:05]}  cxd4 {[%clk 0:02:29]} 10. Nxd4 {[%clk 0:03:06]}  Qe7 {[%clk 0:02:14]} 11. f4 {[%clk 0:02:45]}  Qc5 {[%clk 0:01:40]} 12. Be3 {[%clk 0:00:46]}  Nxc3 {[%clk 0:01:29]} 13. a3 {[%clk 0:00:46]}  Ne4+ {[%clk 0:00:37]} 14. axb4 {[%clk 0:00:46]}  Qxb4+ {[%clk 0:00:37]} 15. Kf1 {[%clk 0:00:28]}  Nc6 {[%clk 0:00:36]} 16. Nxc6 {[%clk 0:00:14]}  bxc6 {[%clk 0:00:34]} 17. Bxe4 {[%clk 0:00:14]}  dxe4 {[%clk 0:00:30]} 18. Kf2 {[%clk 0:00:14]}  Qb5 {[%clk 0:00:17]} 19. Rhc1 {[%clk 0:00:14]}  Bf5 {[%clk 0:00:16]} 20. Qxc6 {[%clk 0:00:12]}  Qxb2+ {[%clk 0:00:16]} 21. Qc2 {[%clk 0:00:12]}  Qb5 {[%clk 0:00:14]} 22. Rxa7 {[%clk 0:00:11]}  Rxa7 {[%clk 0:00:09]} 23. Bxa7 {[%clk 0:00:12]}  f6 {[%clk 0:00:08]} 24. exf6 {[%clk 0:00:11]}  Rxf6 {[%clk 0:00:07]} 25. Qc4+ {[%clk 0:00:11]}  Qxc4 {[%clk 0:00:07]} 26. Rxc4 {[%clk 0:00:12]}  Ra6 {[%clk 0:00:06]} 27. Be3 {[%clk 0:00:10]}  Ra2+ {[%clk 0:00:06]} 28. Kg3 {[%clk 0:00:10]}  h5 {[%clk 0:00:06]} 29. h3 {[%clk 0:00:10]}  Ra3 {[%clk 0:00:06]} 30. Kf2 {[%clk 0:00:09]}  Ra2+ {[%clk 0:00:06]} 31. Kg3 {[%clk 0:00:09]}  Kh7 {[%clk 0:00:06]} 32. Rc5 {[%clk 0:00:09]}  g6 {[%clk 0:00:05]} 33. Rc7+ {[%clk 0:00:08]}  Kg8 {[%clk 0:00:05]} 34. Bd4 {[%clk 0:00:07]}  Ra3+ {[%clk 0:00:06]} 35. Kh4 {[%clk 0:00:08]}  e3 {[%clk 0:00:04]} 36. Rg7+ {[%clk 0:00:06]}  Kf8 {[%clk 0:00:03]} 37. Bc5+ {[%clk 0:00:06]}  Kxg7 {[%clk 0:00:03]} 38. Bxa3 {[%clk 0:00:07]}  e2 {[%clk 0:00:02]} 39. Bb4 {[%clk 0:00:07]}  Be4 {[%clk 0:00:02]} 40. Kg3 {[%clk 0:00:07]}  h4+ {[%clk 0:00:03]} 41. Kf2 {[%clk 0:00:07]}  Kf6 {[%clk 0:00:03]} 42. Ba5 {[%clk 0:00:07]}  Kf5 {[%clk 0:00:03]} 43. Bd8 {[%clk 0:00:07]}  Bd3 {[%clk 0:00:03]} 44. Bxh4 {[%clk 0:00:07]}  Kxf4 {[%clk 0:00:03]} 45. Be7 {[%clk 0:00:07]}  Ke4 {[%clk 0:00:03]} 46. Bb4 {[%clk 0:00:07]}  Kd5 {[%clk 0:00:04]} 47. Be1 {[%clk 0:00:07]}  Kc4 {[%clk 0:00:05]} 48. Bd2 {[%clk 0:00:07]}  Kb3 {[%clk 0:00:05]} 49. g4 {[%clk 0:00:07]}  Kc2 {[%clk 0:00:05]} 50. Be1 {[%clk 0:00:07]}  Kd1 {[%clk 0:00:06]} 51. h4 {[%clk 0:00:06]}  Be4 {[%clk 0:00:05]} 52. h5 {[%clk 0:00:07]}  gxh5 {[%clk 0:00:06]} 53. gxh5 {[%clk 0:00:07]}  Bh7 {[%clk 0:00:06]} 54. h6 {[%clk 0:00:08]}  Bc2 {[%clk 0:00:06]} 55. Ba5 {[%clk 0:00:08]}  Bh7 {[%clk 0:00:07]} 56. Be1 {[%clk 0:00:08]}  Bc2 {[%clk 0:00:08]} 57. Ba5 {[%clk 0:00:09]}  Bh7 {[%clk 0:00:09]} 58. Be1 {[%clk 0:00:09]} 1/2-1/2

[Event "December 19 Early 2023"]
[Site "https://www.chess.com"]
[Date "2023.12.19"]
[Round "4"]
[White "Pichot, Alan"]
[Black "Dwilewicz, Katarzyna"]
[Result "1-0"]
[Board "135"]
[TimeControl "180+1"]
[WhiteFideId "110973"]
[BlackFideId "1148486"]
[WhiteElo "2592"]
[BlackElo "2098"]
[WhiteTeam "ESP"]
[BlackTeam "POL"]
[WhiteClock "0:00:19"]
[BlackClock "0:00:02"]

1. d4 {[%clk 0:03:00]}  d5 {[%clk 0:02:59]} 2. Nf3 {[%clk 0:02:59]}  e6 {[%clk 0:02:57]} 3. c4 {[%clk 0:02:59]}  dxc4 {[%clk 0:02:53]} 4. e4 {[%clk 0:02:55]}  a6 {[%clk 0:02:50]} 5. Bxc4 {[%clk 0:02:54]}  b5 {[%clk 0:02:49]} 6. Bd3 {[%clk 0:02:47]}  Bb7 {[%clk 0:02:48]} 7. a4 {[%clk 0:02:45]}  b4 {[%clk 0:02:47]} 8. O-O {[%clk 0:02:44]}  c5 {[%clk 0:02:47]} 9. dxc5 {[%clk 0:02:24]}  Bxc5 {[%clk 0:02:45]} 10. Qe2 {[%clk 0:02:24]}  Nd7 {[%clk 0:02:42]} 11. Nbd2 {[%clk 0:02:19]}  Ngf6 {[%clk 0:02:35]} 12. Nc4 {[%clk 0:02:15]}  Qc7 {[%clk 0:02:17]} 13. g3 {[%clk 0:01:54]}  e5 {[%clk 0:02:11]} 14. Bg5 {[%clk 0:01:30]}  O-O {[%clk 0:01:50]} 15. Rac1 {[%clk 0:01:14]}  Rfe8 {[%clk 0:01:46]} 16. Nh4 {[%clk 0:00:56]}  h6 {[%clk 0:01:37]} 17. Be3 {[%clk 0:00:55]}  Rac8 {[%clk 0:01:20]} 18. f3 {[%clk 0:00:52]}  Bxe3+ {[%clk 0:01:04]} 19. Qxe3 {[%clk 0:00:52]}  Qc5 {[%clk 0:01:02]} 20. Nf5 {[%clk 0:00:34]}  Qxe3+ {[%clk 0:00:59]} 21. Ncxe3 {[%clk 0:00:29]}  Nc5 {[%clk 0:00:26]} 22. Bc4 {[%clk 0:00:27]}  Rcd8 {[%clk 0:00:19]} 23. b3 {[%clk 0:00:25]}  Ne6 {[%clk 0:00:19]} 24. Rfd1 {[%clk 0:00:24]}  Nd4 {[%clk 0:00:13]} 25. Nxd4 {[%clk 0:00:24]}  exd4 {[%clk 0:00:13]} 26. Nf5 {[%clk 0:00:24]}  Kf8 {[%clk 0:00:07]} 27. Kf2 {[%clk 0:00:22]}  Nd7 {[%clk 0:00:04]} 28. Nd6 {[%clk 0:00:21]}  Bc8 {[%clk 0:00:02]} 29. Nxe8 {[%clk 0:00:21]}  Rxe8 {[%clk 0:00:02]} 30. Rxd4 {[%clk 0:00:22]}  Ne5 {[%clk 0:00:03]} 31. Be2 {[%clk 0:00:21]}  a5 {[%clk 0:00:03]} 32. Rc5 {[%clk 0:00:19]}  Be6 {[%clk 0:00:02]} 33. Rxe5 {[%clk 0:00:19]} 1-0

[Event "December 19 Early 2023"]
[Site "https://www.chess.com"]
[Date "2023.12.19"]
[Round "4"]
[White "Ambartsumova, Karina"]
[Black "Goncalves, Davi Sulzbacher"]
[Result "1-0"]
[Board "137"]
[TimeControl "180+1"]
[WhiteFideId "4166299"]
[BlackFideId "2154510"]
[WhiteElo "2240"]
[BlackElo "2175"]
[WhiteTeam "RUS"]
[BlackTeam "BRA"]
[WhiteClock "0:01:12"]
[BlackClock "0:00:03"]

1. d4 {[%clk 0:03:00]}  d5 {[%clk 0:01:51]} 2. c4 {[%clk 0:03:00]}  e6 {[%clk 0:01:50]} 3. Nc3 {[%clk 0:03:00]}  Nf6 {[%clk 0:01:51]} 4. cxd5 {[%clk 0:03:00]}  exd5 {[%clk 0:01:51]} 5. Bg5 {[%clk 0:03:00]}  c6 {[%clk 0:01:49]} 6. e3 {[%clk 0:03:01]}  Bf5 {[%clk 0:01:50]} 7. Qf3 {[%clk 0:02:57]}  Bg6 {[%clk 0:01:50]} 8. Bxf6 {[%clk 0:02:58]}  Qxf6 {[%clk 0:01:50]} 9. Qxf6 {[%clk 0:02:58]}  gxf6 {[%clk 0:01:51]} 10. Kd2 {[%clk 0:02:58]}  Nd7 {[%clk 0:01:51]} 11. h4 {[%clk 0:02:58]}  h5 {[%clk 0:01:50]} 12. Bd3 {[%clk 0:02:56]}  b5 {[%clk 0:01:41]} 13. Nge2 {[%clk 0:02:54]}  Nb6 {[%clk 0:01:39]} 14. b3 {[%clk 0:02:52]}  b4 {[%clk 0:01:36]} 15. Nd1 {[%clk 0:02:52]}  Bd6 {[%clk 0:01:30]} 16. Nb2 {[%clk 0:02:45]}  a5 {[%clk 0:01:28]} 17. Rhc1 {[%clk 0:02:33]}  Kd7 {[%clk 0:01:28]} 18. Na4 {[%clk 0:02:06]}  Nxa4 {[%clk 0:01:17]} 19. bxa4 {[%clk 0:02:07]}  Rab8 {[%clk 0:01:03]} 20. Rab1 {[%clk 0:02:06]}  Rb6 {[%clk 0:00:48]} 21. Rc2 {[%clk 0:02:04]}  Rhb8 {[%clk 0:00:37]} 22. Nc1 {[%clk 0:01:57]}  Rg8 {[%clk 0:00:36]} 23. g3 {[%clk 0:01:56]}  Rc8 {[%clk 0:00:24]} 24. Nb3 {[%clk 0:01:56]}  Ra8 {[%clk 0:00:20]} 25. Rbc1 {[%clk 0:01:52]}  Be7 {[%clk 0:00:18]} 26. Rxc6 {[%clk 0:01:32]}  Rxc6 {[%clk 0:00:12]} 27. Bb5 {[%clk 0:01:32]}  Ke6 {[%clk 0:00:08]} 28. Rxc6+ {[%clk 0:01:30]}  Kf5 {[%clk 0:00:08]} 29. Rc7 {[%clk 0:01:25]}  Bd6 {[%clk 0:00:07]} 30. Bd7+ {[%clk 0:01:16]}  Ke4 {[%clk 0:00:03]} 31. Ke2 {[%clk 0:01:12]} 1-0

[Event "December 19 Early 2023"]
[Site "https://www.chess.com"]
[Date "2023.12.19"]
[Round "4"]
[White "Buchenau, Frank"]
[Black "Jakubowski, Krzysztof"]
[Result "0-1"]
[Board "138"]
[TimeControl "180+1"]
[WhiteFideId "4604350"]
[BlackFideId "1112848"]
[WhiteElo "2157"]
[BlackElo "2369"]
[WhiteTeam "GER"]
[BlackTeam "POL"]
[WhiteClock "0:00:00"]
[BlackClock "0:01:38"]

1. e4 {[%clk 0:02:51]}  c5 {[%clk 0:02:55]} 2. Nf3 {[%clk 0:02:49]}  e6 {[%clk 0:02:55]} 3. d4 {[%clk 0:02:48]}  cxd4 {[%clk 0:02:55]} 4. Nxd4 {[%clk 0:02:49]}  a6 {[%clk 0:02:53]} 5. Bd3 {[%clk 0:02:48]}  Bc5 {[%clk 0:02:51]} 6. Nb3 {[%clk 0:02:47]}  Ba7 {[%clk 0:02:51]} 7. O-O {[%clk 0:02:47]}  Nc6 {[%clk 0:02:49]} 8. Qe2 {[%clk 0:02:46]}  Nge7 {[%clk 0:02:48]} 9. Be3 {[%clk 0:02:46]}  O-O {[%clk 0:02:47]} 10. Bxa7 {[%clk 0:02:45]}  Rxa7 {[%clk 0:02:46]} 11. f4 {[%clk 0:02:43]}  d6 {[%clk 0:02:33]} 12. c4 {[%clk 0:02:42]}  b5 {[%clk 0:02:29]} 13. cxb5 {[%clk 0:02:30]}  axb5 {[%clk 0:02:28]} 14. Bxb5 {[%clk 0:02:26]}  Bb7 {[%clk 0:02:20]} 15. Nc3 {[%clk 0:02:17]}  Qa8 {[%clk 0:02:16]} 16. a4 {[%clk 0:02:08]}  Nb4 {[%clk 0:01:49]} 17. f5 {[%clk 0:00:00]}  exf5 {[%clk 0:01:38]} 0-1

[Event "December 19 Early 2023"]
[Site "https://www.chess.com"]
[Date "2023.12.19"]
[Round "4"]
[White "Skatchkov, Valery"]
[Black "Cansun, Can Alp"]
[Result "0-1"]
[Board "140"]
[TimeControl "180+1"]
[WhiteFideId "24195812"]
[BlackFideId "6390188"]
[WhiteElo "2320"]
[BlackElo "2031"]
[WhiteTeam "RUS"]
[BlackTeam "TUR"]
[WhiteClock "0:00:06"]
[BlackClock "0:00:29"]

1. d4 {[%clk 0:03:00]}  Nf6 {[%clk 0:02:59]} 2. c4 {[%clk 0:03:00]}  e6 {[%clk 0:02:58]} 3. Nf3 {[%clk 0:03:00]}  b6 {[%clk 0:02:57]} 4. g3 {[%clk 0:02:59]}  Bb7 {[%clk 0:02:57]} 5. Bg2 {[%clk 0:02:59]}  Be7 {[%clk 0:02:57]} 6. Nc3 {[%clk 0:02:59]}  Ne4 {[%clk 0:02:55]} 7. Bd2 {[%clk 0:02:58]}  f5 {[%clk 0:02:49]} 8. d5 {[%clk 0:02:53]}  O-O {[%clk 0:02:33]} 9. Qc2 {[%clk 0:02:49]}  Nd6 {[%clk 0:02:21]} 10. b3 {[%clk 0:02:21]}  Bf6 {[%clk 0:02:19]} 11. Rd1 {[%clk 0:02:20]}  Qe7 {[%clk 0:02:17]} 12. dxe6 {[%clk 0:01:54]}  dxe6 {[%clk 0:02:17]} 13. O-O {[%clk 0:01:54]}  Nd7 {[%clk 0:02:06]} 14. Be3 {[%clk 0:01:28]}  c5 {[%clk 0:01:59]} 15. Bf4 {[%clk 0:01:17]}  Nf7 {[%clk 0:01:50]} 16. e4 {[%clk 0:01:07]}  e5 {[%clk 0:01:28]} 17. Bc1 {[%clk 0:01:03]}  fxe4 {[%clk 0:01:17]} 18. Nd2 {[%clk 0:00:44]}  Ng5 {[%clk 0:01:13]} 19. Ndxe4 {[%clk 0:00:43]}  Nxe4 {[%clk 0:01:09]} 20. Nxe4 {[%clk 0:00:43]}  Rfd8 {[%clk 0:01:00]} 21. Bb2 {[%clk 0:00:36]}  Nf8 {[%clk 0:00:55]} 22. Nxf6+ {[%clk 0:00:16]}  gxf6 {[%clk 0:00:54]} 23. Bxb7 {[%clk 0:00:17]}  Qxb7 {[%clk 0:00:53]} 24. Qf5 {[%clk 0:00:16]}  Qe7 {[%clk 0:00:52]} 25. f4 {[%clk 0:00:14]}  Ng6 {[%clk 0:00:50]} 26. fxe5 {[%clk 0:00:15]}  fxe5 {[%clk 0:00:47]} 27. Rde1 {[%clk 0:00:13]}  Rf8 {[%clk 0:00:40]} 28. Qe4 {[%clk 0:00:13]}  Rxf1+ {[%clk 0:00:37]} 29. Rxf1 {[%clk 0:00:14]}  Rf8 {[%clk 0:00:37]} 30. Qd5+ {[%clk 0:00:13]}  Kg7 {[%clk 0:00:35]} 31. Re1 {[%clk 0:00:09]}  Re8 {[%clk 0:00:35]} 32. Kg2 {[%clk 0:00:09]}  Qg5 {[%clk 0:00:30]} 33. Re2 {[%clk 0:00:06]}  Nf4+ {[%clk 0:00:29]} 0-1